bitfinex/quotes_SOLUSD_20250917
["timestamp","ask_amount","ask_price","bid_price","bid_amount"]
[1758129947861,1.55530498,233.51,233.5,4.34265524]
[1758129949967,1.55530498,233.51,233.5,0.06]
[1758129950977,1.55530498,233.51,233.5,4.34265524]
[1758129951682,20.06337083,233.51,233.5,0.06]
[1758129951862,39.59559401,233.48,233.47,0.06]
[1758129952179,75.72620397,233.48,233.41,0.06]
[1758129952482,15.15089899,233.46,233.41,0.06]
[1758129952976,15.72089899,233.46,233.41,0.06]
[1758129954175,20.004288,233.46,233.41,0.06]
[1758129956486,26.0,233.43,233.41,0.06]
[1758129956775,39.59559401,233.4,233.39,0.06]
[1758129956976,74.19089899,233.4,233.39,0.06]
[1758129957177,76.47804252,233.4,233.39,0.06]
[1758129958281,80.76253266,233.4,233.39,0.06]
[1758129960485,80.76253266,233.4,233.38,0.06]
[1758129960683,0.57,233.39,233.38,0.06]
[1758129961869,2.12530498,233.39,233.38,0.06]
[1758129962775,6.4099787,233.39,233.38,0.06]
[1758129963165,8.12726967,233.39,233.38,0.06]
[1758129966197,8.12726967,233.39,233.35,0.06]
[1758129966198,13.59559401,233.38,233.35,0.06]
[1758129966382,13.59559401,233.36,233.35,0.06]
[1758129966582,16.70620397,233.36,233.34,0.06]
[1758129966770,41.15089899,233.33,233.32,0.06]
[1758129966965,74.19089899,233.33,233.32,0.06]
[1758129967285,74.76089899,233.33,233.32,0.06]
[1758129967493,76.47863244,233.33,233.32,0.06]
[1758129968068,80.76440795,233.33,233.32,0.06]
[1758129968374,80.19440795,233.33,233.32,0.06]
[1758129969578,80.76440795,233.33,233.32,0.06]
[1758129974289,80.76440795,233.33,233.29,0.06]
[1758129974493,13.59559401,233.3,233.29,0.06]
[1758129974797,46.61559401,233.3,233.29,0.06]
[1758129974997,48.90362257,233.3,233.29,0.06]
[1758129976194,53.18994918,233.3,233.29,0.06]
[1758129976576,54.74525416,233.3,233.29,0.06]
[1758129979190,54.17525416,233.3,233.29,0.06]
[1758129979899,54.74525416,233.3,233.29,0.06]
[1758129982816,52.61994918,233.3,233.29,0.06]
[1758129983019,54.74525416,233.3,233.29,0.06]
[1758129983802,54.17525416,233.3,233.29,0.06]
[1758129984106,54.74525416,233.3,233.29,0.06]
[1758129984595,54.17525416,233.3,233.29,0.06]
[1758129986108,52.4572256,233.3,233.29,0.06]
[1758129987182,53.0272256,233.3,233.29,0.06]
[1758129987387,39.59559401,233.27,233.26,0.06]
[1758129987603,74.17089899,233.27,233.26,0.06]
[1758129988404,78.45777685,233.27,233.26,0.06]
[1758129988886,26.0,233.19,233.13,4.28944047]
[1758129989099,1.55530498,233.2,233.17,4.48871638]
[1758129989311,33.08,233.19,233.17,4.48871638]
[1758129989487,1.55530498,233.22,233.18,0.65]
[1758129989819,34.63530498,233.21,233.18,0.65]
[1758129989987,33.08,233.2,233.18,0.65]
[1758129990702,26.0,233.23,233.18,4.93851023]
[1758129990884,33.08,233.22,233.19,0.65]
[1758129991213,0.03,233.3,233.21,1.55530498]
[1758129991509,0.03,233.3,233.18,15.00984139]
[1758129991510,33.08,233.29,233.22,0.65]
[1758129991682,33.08,233.29,233.22,2.20530498]
[1758129991886,33.08,233.29,233.23,0.65]
[1758129992310,1.58530498,233.3,233.23,0.65]
[1758129992510,33.1,233.29,233.24,1.55530498]
[1758129992713,0.03,233.3,233.26,15.00471575]
[1758129993013,32.33,233.3,233.26,16.56002073]
[1758129993204,32.33,233.3,233.27,0.65]
[1758129993408,0.03,233.3,233.27,0.65]
[1758129993620,33.13,233.3,233.27,0.65]
[1758129994701,33.13,233.3,233.28,4.2866941]
[1758129994900,33.13,233.3,233.29,0.66]
[1758129995312,0.03,233.3,233.29,0.66]
[1758129996896,0.03,233.3,233.29,4.94651035]
[1758130005002,0.03,233.3,233.29,6.50181533]
[1758130005815,0.03,233.3,233.29,20.52606037]
[1758130006024,0.03,233.3,233.29,20.09740934]
[1758130007706,1e-08,233.33,233.32,26.0]
[1758130008008,1e-08,233.33,233.32,27.55530498]
[1758130008210,1e-08,233.33,233.32,28.21530498]
[1758130008410,1e-08,233.33,233.32,26.66]
[1758130008729,1e-08,233.33,233.32,28.21530498]
[1758130008942,1e-08,233.33,233.32,41.81089899]
[1758130009800,1e-08,233.33,233.32,46.97300268]
[1758130016841,1e-08,233.33,233.32,44.5415532]
[1758130017020,1e-08,233.33,233.32,46.97300268]
[1758130017539,1e-08,233.33,233.32,49.83304807]
[1758130017726,0.03,233.43,233.38,26.0]
[1758130017928,0.03,233.43,233.42,2.43144948]
[1758130018727,0.03,233.43,233.42,6.71557252]
[1758130021021,0.03,233.43,233.42,26.0]
[1758130021222,0.03,233.43,233.42,28.43144948]
[1758130021425,0.03,233.43,233.42,29.12144948]
[1758130022125,1e-08,233.45,233.44,26.0]
[1758130022326,1e-08,233.45,233.44,2.43144948]
[1758130022561,1e-08,233.45,233.44,3.12144948]
[1758130023360,1e-08,233.45,233.44,6.71520547]
[1758130023563,1e-08,233.45,233.44,4.28375599]
[1758130023723,1e-08,233.45,233.38,2.88993521]
[1758130023724,0.67000001,233.45,233.42,4.28412304]
[1758130024052,0.7,233.44,233.42,4.28412304]
[1758130024258,3.16144948,233.43,233.37,14.99739954]
[1758130024557,3.13144948,233.42,233.37,14.99739954]
[1758130024725,0.7,233.41,233.37,14.99739954]
[1758130024925,0.7,233.4,233.37,14.99739954]
[1758130025129,2.46144948,233.43,233.37,14.99739954]
[1758130025333,0.7,233.42,233.37,10.71235862]
[1758130026432,0.7,233.42,233.37,13.1438081]
[1758130026629,0.03,233.43,233.37,13.8338081]
[1758130026842,0.03,233.43,233.41,2.43144948]
[1758130027322,0.03,233.43,233.39,40.99635802]
[1758130027523,0.03,233.43,233.39,14.99635802]
[1758130027747,0.7,233.42,233.39,14.99635802]
[1758130028132,0.03,233.43,233.39,17.4278075]
[1758130028335,0.73,233.43,233.39,17.4278075]
[1758130030942,0.03,233.43,233.41,2.43144948]
[1758130031153,0.03,233.43,233.42,7.83398482]
[1758130031654,0.03,233.43,233.42,33.83398482]
[1758130034431,1e-08,233.45,233.42,33.83398482]
[1758130034432,1e-08,233.46,233.42,44.54429242]
[1758130034635,1e-08,233.46,233.45,28.43144948]
[1758130035048,1e-08,233.46,233.45,29.12144948]
[1758130035244,1e-08,233.46,233.44,0.42837559]
[1758130035245,3.13144949,233.46,233.34,1.71611215]
[1758130035489,2.43144948,233.43,233.36,2.43144948]
[1758130035631,2.43144948,233.43,233.35,0.69]
[1758130035632,0.7,233.43,233.37,2.43144948]
[1758130035834,0.7,233.43,233.38,14.99700059]
[1758130036145,0.70000001,233.46,233.42,2.43144948]
[1758130036339,0.7,233.45,233.43,2.43144948]
[1758130037269,1e-08,233.46,233.43,2.43144948]
[1758130037631,1e-08,233.46,233.45,2.43144948]
[1758130037837,1e-08,233.46,233.45,6.71502197]
[1758130040551,1e-08,233.46,233.45,7.40502197]
[1758130042048,1e-08,233.46,233.45,21.42897322]
[1758130042252,1e-08,233.46,233.45,23.8604227]
[1758130042555,1e-08,233.46,233.45,21.42897322]
[1758130043839,1e-08,233.46,233.45,23.8604227]
[1758130044063,0.03,233.52,233.51,2.43144948]
[1758130046256,0.03,233.52,233.51,7.40392132]
[1758130048276,0.03,233.52,233.51,7.8321685]
[1758130049275,0.03,233.52,233.51,39.89392132]
[1758130049590,0.03,233.52,233.51,40.58392132]
[1758130050958,0.03,233.52,233.51,38.15247184]
[1758130051153,0.03,233.52,233.51,40.58392132]
[1758130052363,0.03,233.52,233.51,41.0121685]
[1758130054866,0.03,233.52,233.51,40.3221685]
[1758130055063,0.03,233.52,233.51,40.9721685]
[1758130060388,0.03,233.52,233.51,30.28247184]
[1758130060678,0.7,233.52,233.51,6.71392132]
[1758130061963,0.03,233.52,233.51,6.71392132]
[1758130062162,0.03,233.52,233.51,66.9121685]
[1758130062964,0.03,233.52,233.51,64.48071902]
[1758130063274,0.03,233.52,233.51,66.9121685]
[1758130063789,0.03,233.52,233.51,66.48392132]
[1758130064159,0.1,233.54,233.53,26.0]
[1758130064160,1e-08,233.54,233.53,26.0]
[1758130064489,1e-08,233.54,233.53,61.57144948]
[1758130064664,1e-08,233.54,233.53,62.22144948]
[1758130065595,1e-08,233.54,233.53,66.50355456]
[1758130069587,1e-08,233.54,233.53,65.85355456]
[1758130069772,1e-08,233.54,233.53,65.62577537]
[1758130071761,1e-08,233.54,233.53,79.22136938]
[1758130071966,0.03,233.56,233.55,15.1492643]
[1758130071967,1e-08,233.56,233.55,15.1492643]
[1758130072155,1e-08,233.56,233.55,48.2492643]
[1758130072362,1e-08,233.56,233.55,53.18100268]
[1758130074279,0.67000001,233.56,233.55,37.38173838]
[1758130074465,0.67000001,233.56,233.55,38.93540867]
[1758130074863,1e-08,233.56,233.55,38.93540867]
[1758130078282,1e-08,233.56,233.55,39.61540867]
[1758130079281,1e-08,233.56,233.55,38.93540867]
[1758130081892,1e-08,233.56,233.55,53.63917651]
[1758130082391,0.7,233.61,233.55,53.63917651]
[1758130082392,1e-08,233.61,233.59,13.59559401]
[1758130082595,1e-08,233.61,233.6,40.86835145]
[1758130082799,1e-08,233.61,233.6,41.54835145]
[1758130083895,1e-08,233.61,233.6,45.82917336]
[1758130086091,1e-08,233.61,233.6,59.42476737]
[1758130089093,1e-08,233.61,233.6,53.21008621]
[1758130089485,1e-08,233.61,233.6,58.70476737]
[1758130090001,1e-08,233.61,233.6,59.38476737]
[1758130090295,1e-08,233.61,233.6,53.17008621]
[1758130091283,1e-08,233.61,233.6,52.49008621]
[1758130092692,1e-08,233.61,233.6,53.17008621]
[1758130092888,1e-08,233.61,233.6,18.55641592]
[1758130093089,1e-08,233.61,233.6,52.47008621]
[1758130095614,1e-08,233.61,233.6,50.91641592]
[1758130095797,1e-08,233.61,233.6,52.47008621]
[1758130096307,1e-08,233.64,233.63,39.59559401]
[1758130096493,1e-08,233.64,233.63,74.1892643]
[1758130096698,0.69,233.68,233.61,0.68]
[1758130096901,0.69,233.68,233.62,33.08]
[1758130097108,0.69,233.67,233.65,27.55367029]
[1758130097305,0.69,233.67,233.66,34.63367029]
[1758130098015,0.69,233.67,233.66,38.91339296]
[1758130098914,0.69,233.67,233.66,37.35972267]
[1758130099619,0.69,233.67,233.66,38.91339296]
[1758130099795,0.69,233.67,233.66,37.35972267]
[1758130101411,0.69,233.67,233.66,38.91339296]
[1758130102813,0.69,233.67,233.66,37.35972267]
[1758130102995,0.69,233.67,233.66,38.91339296]
[1758130103501,0.69,233.67,233.66,4.27972267]
[1758130104417,2.24367029,233.67,233.62,4.28045544]
[1758130104614,1.55367029,233.64,233.62,4.28045544]
[1758130105096,2.24367029,233.63,233.62,4.28045544]
[1758130105303,2.24367029,233.63,233.59,33.06]
[1758130105553,0.69,233.63,233.59,48.04351813]
[1758130107446,0.69,233.65,233.61,1.55367029]
[1758130107735,0.69,233.64,233.61,34.61367029]
[1758130107919,0.69,233.63,233.61,33.06]
[1758130108331,0.69,233.62,233.61,33.06]
[1758130108519,0.69,233.62,233.59,48.04351813]
[1758130108718,0.69,233.61,233.59,48.04351813]
[1758130108913,0.69,233.61,233.59,14.98351813]
[1758130109229,0.69,233.6,233.59,4.28100518]
[1758130109429,10.69587529,233.74,233.59,16.53718842]
[1758130109732,0.69,233.66,233.63,1.55367029]
[1758130109925,0.69,233.65,233.63,1.55367029]
[1758130110122,0.69,233.68,233.63,1.55367029]
[1758130110426,0.69,233.68,233.63,2.23367029]
[1758130110623,0.69,233.67,233.63,2.23367029]
[1758130110833,0.69,233.67,233.63,1.55367029]
[1758130111037,0.69,233.66,233.63,1.55367029]
[1758130111235,26.0,233.72,233.63,1.55367029]
[1758130111236,1.55367029,233.7,233.64,4.28008902]
[1758130111421,0.69,233.69,233.64,4.28008902]
[1758130111738,2.24367029,233.69,233.64,4.28008902]
[1758130111942,0.69,233.68,233.64,4.28008902]
[1758130112321,0.69,233.67,233.63,4.28027222]
[1758130112522,0.69,233.66,233.63,4.28027222]
[1758130112921,0.69,233.65,233.63,4.28027222]
[1758130113141,0.69,233.64,233.63,4.28027222]
[1758130114134,1.55367029,233.67,233.63,4.28027222]
[1758130114319,0.68,233.66,233.62,10.70072383]
[1758130115334,0.68,233.66,233.62,12.25439412]
[1758130115518,0.68,233.66,233.62,16.53484956]
[1758130115849,43.77624293,233.73,233.63,2.24367029]
[1758130115850,0.68,233.68,233.63,2.24367029]
[1758130116043,0.68,233.71,233.67,1.55367029]
[1758130116225,0.68,233.71,233.67,2.24367029]
[1758130116543,0.68,233.7,233.65,26.69]
[1758130116741,0.68,233.7,233.66,1.55367029]
[1758130117119,0.68,233.7,233.66,2.24367029]
[1758130117317,1.55367029,233.74,233.66,2.24367029]
[1758130117519,0.68,233.73,233.67,4.27953952]
[1758130117823,0.03,233.71,233.67,4.27953952]
[1758130118061,0.71,233.71,233.67,4.27953952]
[1758130118430,0.03,233.71,233.67,4.27953952]
[1758130118635,0.03,233.71,233.7,1.55367029]
[1758130118830,0.03,233.71,233.7,27.55367029]
[1758130119034,0.03,233.71,233.7,28.24367029]
[1758130119549,0.03,233.71,233.7,32.52266044]
[1758130121632,0.68,233.82,233.7,78.63857964]
[1758130121938,0.68,233.81,233.77,1.55367029]
[1758130122134,0.68,233.8,233.77,1.55367029]
[1758130122353,26.1,233.85,233.77,1.55367029]
[1758130122524,0.68,233.8,233.77,1.55367029]
[1758130122724,0.68,233.8,233.78,4.27752587]
[1758130122945,0.68,233.82,233.78,4.27752587]
[1758130123756,0.68,233.82,233.78,14.97134056]
[1758130124828,0.68,233.82,233.78,12.24748498]
[1758130125030,0.68,233.82,233.78,12.93748498]
[1758130125229,0.68,233.82,233.78,12.24748498]
[1758130125641,0.68,233.81,233.78,12.24748498]
[1758130126254,0.68,233.82,233.78,12.24748498]
[1758130127321,1.65367029,233.85,233.78,16.52501085]
[1758130127526,0.68,233.84,233.78,16.52501085]
[1758130127753,0.68,233.83,233.78,16.52501085]
[1758130128059,0.68,233.82,233.78,16.52501085]
[1758130128438,0.68,233.82,233.78,17.21501085]
[1758130129732,0.68,233.82,233.78,18.08443433]
[1758130130153,2.52309377,233.85,233.78,18.08443433]
[1758130130461,0.68,233.84,233.78,18.08443433]
[1758130130960,0.68,233.84,233.79,2.42309377]
[1758130131465,0.1,233.85,233.8,4.27715996]
[1758130131637,0.68,233.84,233.8,4.27715996]
[1758130131844,0.68,233.83,233.8,4.27715996]
[1758130134072,0.68,233.84,233.8,4.27715996]
[1758130134281,0.68,233.84,233.8,4.96715996]
[1758130135058,0.1,233.85,233.82,4.27679411]
[1758130135746,0.1,233.85,233.84,2.42309377]
[1758130136146,0.1,233.85,233.84,3.11309377]
[1758130137245,0.1,233.85,233.84,7.38952209]
[1758130137664,0.1,233.85,233.84,4.96642832]
[1758130138753,0.1,233.85,233.84,4.27642832]
[1758130141166,0.8,233.85,233.8,0.66]
[1758130141479,0.8,233.85,233.79,13.11618308]
[1758130141480,0.8,233.85,233.81,0.66]
[1758130141650,0.8,233.85,233.82,4.27679411]
[1758130141851,0.7,233.84,233.8,4.27715996]
[1758130142156,0.1,233.85,233.81,0.66]
[1758130142361,0.8,233.85,233.81,0.66]
[1758130143061,0.8,233.85,233.82,4.27679411]
[1758130143653,0.1,233.85,233.82,4.93679411]
[1758130144657,0.1,233.85,233.82,4.27679411]
[1758130145082,0.76,233.85,233.81,4.27697703]
[1758130145263,0.76,233.85,233.81,4.93697703]
[1758130146878,0.1,233.85,233.81,4.93697703]
[1758130148864,0.1,233.85,233.82,0.66]
[1758130150681,0.1,233.85,233.8,17.39315364]
[1758130150885,0.1,233.85,233.83,4.27661121]
[1758130151095,0.1,233.85,233.83,6.69970498]
[1758130151386,0.1,233.85,233.84,3.08309377]
[1758130152789,0.1,233.85,233.84,7.35952209]
[1758130153169,0.03,233.88,233.84,15.62749913]
[1758130153379,0.03,233.88,233.87,2.42309377]
[1758130153794,0.03,233.88,233.87,3.08309377]
[1758130154165,0.03,233.88,233.87,42.67868778]
[1758130154870,0.03,233.88,233.87,46.95456754]
[1758130157074,0.03,233.88,233.87,49.37766131]
[1758130159190,0.66,234.03,233.97,2.42309377]
[1758130159389,0.66,234.03,233.98,33.08]
[1758130159585,0.66,234.02,233.98,33.08]
[1758130159769,0.66,234.02,233.98,33.74]
[1758130159974,0.66,234.04,233.99,0.66]
[1758130160176,0.66,234.04,234.0,0.66]
[1758130160498,4.27150931,234.11,234.0,0.66]
[1758130160797,2.42309377,234.08,234.0,0.66]
[1758130160981,0.66,234.07,234.0,0.66]
[1758130161179,0.66,234.07,234.01,17.37971955]
[1758130161493,0.66,234.09,234.03,2.42309377]
[1758130161794,0.66,234.1,234.05,2.42309377]
[1758130162004,0.66,234.1,234.06,0.66]
[1758130162503,0.66,234.1,234.05,2.42309377]
[1758130162685,0.66,234.1,234.05,3.08309377]
[1758130163003,0.66,234.1,234.06,0.66]
[1758130163172,0.66,234.1,234.06,14.95343074]
[1758130164383,0.66,234.13,234.07,0.66]
[1758130164698,0.66,234.12,234.07,0.66]
[1758130164892,0.66,234.11,234.06,14.95343074]
[1758130165206,3.08309377,234.1,234.04,4.27260202]
[1758130165378,2.42309377,234.1,234.04,4.27260202]
[1758130165595,0.66,234.09,234.04,4.27260202]
[1758130165801,0.66,234.09,234.04,4.93260202]
[1758130167087,0.66,234.08,234.04,4.27260202]
[1758130167798,0.66,234.08,234.04,4.93260202]
[1758130168693,26.0,234.14,234.05,0.66]
[1758130168694,3.08309377,234.11,234.05,0.66]
[1758130169290,3.08309377,234.11,234.04,30.27260202]
[1758130169491,0.66,234.1,234.04,30.27260202]
[1758130170178,3.08309377,234.09,234.04,30.27260202]
[1758130170404,0.66,234.08,234.04,30.27260202]
[1758130170779,0.66,234.07,234.04,30.27260202]
[1758130171198,4.27150362,234.11,234.04,30.27260202]
[1758130171401,0.66,234.1,234.04,30.27260202]
[1758130171586,0.66,234.09,234.04,30.27260202]
[1758130171786,0.66,234.08,234.04,30.27260202]
[1758130172797,2.42309377,234.05,234.01,0.66]
[1758130172984,2.42309377,234.05,233.96,4.27131703]
[1758130172985,2.42309377,234.05,234.02,0.66]
[1758130173621,2.42309377,234.05,234.0,0.66]
[1758130173806,2.42309377,234.05,234.01,0.69]
[1758130174608,2.42309377,234.05,234.02,4.27313904]
[1758130174808,3.09309377,234.05,234.02,4.27313904]
[1758130175006,0.67,234.04,234.0,26.0]
[1758130175220,0.67,234.03,234.0,26.0]
[1758130175398,2.42309377,234.05,234.0,26.0]
[1758130175399,3.09309377,234.05,234.0,26.0]
[1758130175602,0.67,234.04,234.0,26.0]
[1758130176093,0.67,234.03,234.0,26.0]
[1758130176294,2.42309377,234.03,233.98,4.27386956]
[1758130176493,10.67981258,234.09,233.98,4.27386956]
[1758130176494,2.42309377,234.01,233.98,4.27386956]
[1758130176792,3.09309377,234.01,233.97,4.27405222]
[1758130177123,3.09309377,234.01,233.97,4.96405222]
[1758130177303,0.67,234.0,233.97,4.27405222]
[1758130178416,0.67,234.0,233.96,4.27423491]
[1758130178597,0.67,234.03,233.97,0.69]
[1758130178798,2.42309377,234.01,233.96,14.95982218]
[1758130178997,2.42309377,234.01,233.97,0.69]
[1758130179608,0.67,234.0,233.96,14.95982218]
[1758130179921,0.67,234.0,233.96,15.64982218]
[1758130180125,2.42309377,234.01,233.96,15.64982218]
[1758130180297,2.42309377,234.01,233.97,0.69]
[1758130180698,2.42309377,234.01,233.98,4.27386956]
[1758130181506,0.67,234.02,233.98,4.27386956]
[1758130181714,2.42309377,234.01,233.98,4.27386956]
[1758130181908,3.09309377,234.02,233.97,0.69]
[1758130183036,3.09309377,234.02,233.98,4.27386956]
[1758130185029,2.42309377,234.0,233.95,4.27441761]
[1758130185329,2.42309377,233.98,233.93,30.2746551]
[1758130185533,0.67,233.97,233.93,30.2746551]
[1758130185838,4.27336831,234.01,233.91,4.96498882]
[1758130185839,2.42309377,233.95,233.91,4.96498882]
[1758130186129,0.67,233.96,233.91,4.96498882]
[1758130186130,3.09309377,233.96,233.91,4.96498882]
[1758130186321,3.09309377,233.96,233.92,0.69]
[1758130186513,3.09309377,233.97,233.92,0.69]
[1758130186718,0.67,233.96,233.93,4.27478305]
[1758130187102,0.67,233.95,233.93,4.27478305]
[1758130187409,2.42309377,233.96,233.93,4.27478305]
[1758130187720,0.67,233.95,233.91,4.27514856]
[1758130188222,2.42309377,233.96,233.91,4.96514856]
[1758130188418,0.67,233.95,233.91,4.96514856]
[1758130189024,0.67,233.94,233.9,10.68820997]
[1758130189227,0.67,233.94,233.89,4.96551413]
[1758130189228,3.09309377,233.94,233.89,4.96551413]
[1758130189621,0.67,233.93,233.89,4.96551413]
[1758130189818,3.09309377,233.93,233.89,4.96551413]
[1758130191543,0.67,233.99,233.91,2.42309377]
[1758130191713,0.67,233.99,233.9,0.69]
[1758130191714,0.67,233.99,233.92,2.23877517]
[1758130191909,0.67,233.99,233.93,1.54877517]
[1758130192110,0.67,233.99,233.94,0.69]
[1758130192524,0.67,233.98,233.94,0.69]
[1758130193045,0.67,233.98,233.95,4.27441761]
[1758130193543,0.67,234.01,233.95,4.96441761]
[1758130193744,2.21877517,234.0,233.95,4.96441761]
[1758130194039,0.67,233.99,233.95,4.27441761]
[1758130194444,1.54877517,233.99,233.95,4.27441761]
[1758130194740,2.21877517,233.99,233.94,0.69]
[1758130195147,1.54877517,233.99,233.95,0.69]
[1758130195658,1.54877517,233.99,233.96,4.27423491]
[1758130195936,2.21877517,233.99,233.96,4.27423491]
[1758130196444,0.67,233.99,233.96,4.27423491]
[1758130196640,0.67,233.99,233.94,4.27460032]
[1758130196818,0.67,233.99,233.94,4.96460032]
[1758130197419,0.67,233.99,233.94,4.27460032]
[1758130197649,1.54877517,234.0,233.95,0.7]
[1758130197940,2.26877517,234.0,233.96,4.27423491]
[1758130198244,2.26877517,234.0,233.96,4.97423491]
[1758130198420,0.03,233.98,233.96,4.27423491]
[1758130199037,0.03,233.98,233.95,4.27441761]
[1758130199946,1.54877517,233.96,233.93,4.27464434]
[1758130200148,1.54877517,233.95,233.93,4.27464434]
[1758130200673,1.54877517,233.95,233.93,4.97464434]
[1758130200831,1.54877517,233.96,233.93,4.97464434]
[1758130201549,1.54877517,233.95,233.91,4.27514856]
[1758130201724,1.54877517,233.95,233.92,0.7]
[1758130202343,1.54877517,233.95,233.91,4.27514856]
[1758130202635,1.54877517,233.97,233.92,0.7]
[1758130202946,0.03,233.98,233.92,0.7]
[1758130202947,1.57877517,233.98,233.92,0.7]
[1758130203443,0.03,233.98,233.93,4.27478305]
[1758130203617,0.03,233.98,233.97,1.54877517]
[1758130204018,0.03,233.98,233.97,2.26877517]
[1758130204640,0.03,233.98,233.97,0.72]
[1758130204839,0.03,233.98,233.94,0.72]
[1758130205055,0.03,233.98,233.94,2.26877517]
[1758130205230,0.03,233.98,233.96,4.27423491]
[1758130205629,0.03,233.98,233.96,4.99423491]
[1758130205833,1.57877517,233.98,233.94,4.99442322]
[1758130206032,0.03,233.98,233.95,0.72]
[1758130206664,0.03,233.98,233.96,0.72]
[1758130207461,0.03,233.98,233.94,15.68092403]
[1758130207661,0.03,233.98,233.95,0.72]
[1758130209767,0.03,233.98,233.96,4.27423491]
[1758130210061,0.03,233.98,233.92,1.54877517]
[1758130210062,2.22877517,233.97,233.92,4.9949658]
[1758130210268,1.54877517,233.97,233.92,4.2749658]
[1758130210464,1.54877517,233.97,233.91,10.68760823]
[1758130210465,1.54877517,233.94,233.91,4.27512127]
[1758130210770,1.54877517,233.93,233.91,4.27512127]
[1758130210944,1.54877517,233.94,233.91,4.99512127]
[1758130211140,1.54877517,233.93,233.9,4.27532664]
[1758130211348,0.03,233.98,233.88,0.06]
[1758130211349,1.54877517,233.92,233.88,0.06]
[1758130211546,2.22877517,233.92,233.88,0.06]
[1758130211938,2.22877517,233.92,233.89,4.27550834]
[1758130212660,1.54877517,233.9,233.88,0.06]
[1758130212961,1.54877517,233.91,233.88,5.0555965]
[1758130213857,2.22877517,233.93,233.88,5.0555965]
[1758130214164,0.68,233.92,233.88,4.3355965]
[1758130215753,2.22877517,233.92,233.88,4.3355965]
[1758130216857,2.22877517,233.92,233.88,5.0555965]
[1758130217576,2.22877517,233.92,233.88,4.3355965]
[1758130218053,1.54877517,233.92,233.88,0.06]
[1758130218251,1.54877517,233.9,233.88,0.06]
[1758130218655,0.03,233.95,233.88,0.06]
[1758130218844,1.54877517,233.93,233.88,0.78]
[1758130219049,1.54877517,233.93,233.89,0.72]
[1758130219573,2.22877517,233.93,233.89,0.72]
[1758130221475,0.68,233.92,233.88,4.3355831]
[1758130221683,1.54877517,233.93,233.88,4.3355831]
[1758130221885,1.54877517,233.93,233.89,0.72]
[1758130222058,0.03,233.95,233.9,0.72]
[1758130223459,0.03,233.95,233.91,4.27514856]
[1758130223877,0.03,233.95,233.92,0.72]
[1758130224183,0.03,233.95,233.88,0.06]
[1758130224184,2.22877517,233.94,233.88,0.06]
[1758130224353,0.03,233.95,233.9,1.54877517]
[1758130224555,0.03,233.95,233.91,0.72]
[1758130224965,0.03,233.95,233.92,0.72]
[1758130225574,0.68,233.94,233.9,4.27516646]
[1758130225745,0.68,233.93,233.9,4.27516646]
[1758130226261,0.03,233.95,233.88,0.06]
[1758130226262,2.22877517,233.92,233.88,4.33560293]
[1758130227087,1.54877517,233.9,233.88,0.06]
[1758130228347,0.68,233.89,233.88,0.06]
[1758130228785,1.54877517,233.9,233.88,0.06]
[1758130228959,2.22877517,233.9,233.88,0.06]
[1758130229778,33.06,233.93,233.89,0.72]
[1758130230088,2.25877517,233.95,233.89,0.72]
[1758130230260,35.31877517,233.95,233.89,0.72]
[1758130230455,0.03,233.95,233.89,0.72]
[1758130230659,0.03,233.95,233.91,1.54877517]
[1758130231154,0.03,233.95,233.92,0.72]
[1758130231575,0.03,233.95,233.93,0.72]
[1758130231789,0.03,233.95,233.94,4.27460032]
[1758130232091,0.03,233.95,233.94,4.99460032]
[1758130235458,0.03,233.95,233.94,32.54337549]